fUST/lending_fUST_20241114
["ID","MTS","AMOUNT","RATE_DAILY","PERIOD"]
[342189388,1731573062041,-516.22118445,0.00022191,2]
[342189389,1731573062050,-3866.65,0.00022191,2]
[342189390,1731573062059,-500.0,0.00022191,2]
[342189391,1731573062070,-500.0,0.00022191,2]
[342189392,1731573062081,-500.0,0.00022191,2]
[342189393,1731573062091,-500.0,0.00022191,2]
[342189394,1731573062100,-500.0,0.00022191,2]
[342189395,1731573062110,-1028.53,0.00022191,2]
[342189396,1731573062120,-500.49,0.00022191,2]
[342189397,1731573062129,-500.0,0.00022191,2]
[342189398,1731573062139,-500.0,0.00022191,2]
[342189399,1731573062149,-500.0,0.00022191,2]
[342189400,1731573062158,-500.0,0.00022191,2]
[342189401,1731573062167,-515.28031721,0.00022191,2]
[342189402,1731573062178,-500.6,0.00022191,2]
[342189403,1731573062187,-500.0,0.00022191,2]
[342189404,1731573062197,-514.23835042,0.00022191,2]
[342189405,1731573062206,-551.13,0.00022191,2]
[342189406,1731573062216,-212.89560175,0.00022191,2]
[342189407,1731573062225,-554.7,0.00022191,2]
[342189408,1731573062234,-500.0,0.00022191,2]
[342189409,1731573062244,-500.0,0.00022191,2]
[342189410,1731573062254,-500.0,0.00022191,2]
[342189411,1731573062264,-500.0,0.00022191,2]
[342189412,1731573062274,-500.0,0.00022191,2]
[342189413,1731573062283,-2235.09,0.00022191,2]
[342189414,1731573062293,-1562.1,0.00022191,2]
[342189415,1731573062303,-500.0,0.00022191,2]
[342189416,1731573062312,-500.0,0.00022191,2]
[342189417,1731573062324,-500.0,0.00022191,2]
[342189418,1731573062333,-500.0,0.00022191,2]
[342189419,1731573062342,-500.0,0.00022191,2]
[342189420,1731573062351,-500.0,0.00022191,2]
[342189421,1731573062361,-500.0,0.00022191,2]
[342189422,1731573062371,-500.0,0.00022191,2]
[342189423,1731573062380,-2880.8,0.00022191,2]
[342189424,1731573062390,-500.0,0.00022191,2]
[342189425,1731573062400,-879.61,0.00022191,2]
[342189426,1731573062410,-500.0,0.00022191,2]
[342189427,1731573062419,-500.0,0.00022191,2]
[342189428,1731573062429,-500.0,0.00022191,2]
[342189429,1731573062438,-1120.94,0.00022191,2]
[342189430,1731573062448,-500.0,0.00022191,2]
[342189431,1731573062458,-500.0,0.00022191,2]
[342189432,1731573062467,-500.0,0.00022191,2]
[342189433,1731573062477,-218.39329259,0.00022191,2]
[342189434,1731573062487,-4889.16,0.00022191,2]
[342189435,1731573062497,-812.97,0.00022191,2]
[342189436,1731573062506,-592.303162,0.00022191,7]
[342189437,1731573062516,-592.303162,0.00022191,7]
[342189438,1731573062526,-500.0,0.00022191,2]
[342189439,1731573062535,-592.303162,0.00022191,7]
[342189440,1731573062545,-500.0,0.00022191,2]
[342189441,1731573062555,-519.64148118,0.00022191,2]
[342189442,1731573062565,-6480.3,0.00022191,2]
[342189443,1731573062578,-500.0,0.00022191,2]
[342189444,1731573062587,-592.303162,0.00022191,7]
[342189445,1731573062598,-592.303162,0.00022191,7]
[342189446,1731573062608,-592.30316,0.00022191,7]
[342189447,1731573062618,-763.17,0.00022191,2]
[342189448,1731573062629,-501.56972315,0.00022191,2]
[342189449,1731573062639,-510.25270024,0.00022191,2]
[342189450,1731573062648,-518.50465699,0.00022191,2]
[342189451,1731573062657,-525.6252284,0.00022191,2]
[342189452,1731573062667,-500.0,0.00022191,2]
[342189453,1731573062676,-500.0,0.00022191,2]
[342189454,1731573062686,-500.0,0.00022191,2]
[342189455,1731573062696,-570.83,0.00022191,2]
[342189456,1731573062707,-1728.07,0.00022191,2]
[342189457,1731573062717,-500.0,0.00022191,2]
[342189458,1731573062727,-500.0,0.00022191,2]
[342189459,1731573062738,-500.0,0.00022191,2]
[342189460,1731573062753,-500.2,0.00022191,2]
[342189461,1731573062763,-785.99,0.00022191,2]
[342189462,1731573062774,-535.84748027,0.00022191,2]
[342189463,1731573062785,-500.0,0.00022191,2]
[342189464,1731573062795,-500.0,0.00022191,2]
[342189465,1731573062805,-749.97,0.00022191,2]
[342189466,1731573062815,-500.0,0.00022191,2]
[342189467,1731573062829,-500.0,0.00022191,2]
[342189468,1731573062839,-691.75,0.00022191,2]
[342189469,1731573062851,-1127.81,0.00022191,2]
[342189470,1731573062860,-500.0,0.00022191,2]
[342189471,1731573062870,-501.78642995,0.00022191,2]
[342189472,1731573062879,-500.0,0.00022191,2]
[342189473,1731573062888,-500.0,0.00022191,2]
[342189474,1731573062898,-502.42094725,0.00022191,2]
[342189475,1731573062908,-500.0,0.00022191,2]
[342189476,1731573062917,-500.0,0.00022191,2]
[342189477,1731573062928,-500.0,0.00022191,2]
[342189478,1731573062938,-845.95,0.00022191,2]
[342189479,1731573062948,-500.0,0.00022191,2]
[342189480,1731573062957,-1203.61,0.00022191,2]
[342189481,1731573062967,-517.47709144,0.00022191,2]
[342189482,1731573062976,-502.4085382,0.00022191,2]
[342189483,1731573062986,-500.0,0.00022191,2]
[342189484,1731573062995,-500.0,0.00022191,2]
[342189485,1731573063005,-500.0,0.00022191,2]
[342189486,1731573063014,-527.33313668,0.00022191,2]
[342189487,1731573063025,-500.0,0.00022191,2]
[342189488,1731573063035,-422.48195345,0.00022191,2]
[342189489,1731573063044,-500.0,0.00022191,2]
[342189490,1731573063054,-817.32,0.00022191,2]
[342189491,1731573063064,-500.0,0.00022191,2]
[342189492,1731573063075,-1024.69,0.00022191,2]
[342189493,1731573063085,-500.0,0.00022191,2]
[342189494,1731573063095,-500.0,0.00022191,2]
[342189495,1731573063105,-500.0,0.00022191,2]
[342189496,1731573063115,-500.0,0.00022191,2]
[342189497,1731573063125,-513.74764567,0.00022191,2]
[342189498,1731573063137,-500.0,0.00022191,2]
[342189499,1731573063148,-542.65214331,0.00022191,2]
[342189500,1731573063157,-200.0,0.000224,7]
[342189501,1731573063167,-662.667239,0.00022465,7]
[342189502,1731573063177,-662.667239,0.00022465,7]
[342189503,1731573063187,-662.667239,0.00022465,7]
[342189504,1731573063197,-662.667232,0.00022465,7]
[342189505,1731573063207,-151.0,0.00022465,7]
[342189506,1731573063218,-151.0,0.00022465,7]
[342189507,1731573063228,-151.0,0.00022465,7]
[342189508,1731573063238,-185.925411,0.00022465,7]
[342189509,1731573063248,-151.0,0.00022465,7]
[342189510,1731573063258,-153.517899,0.00022465,7]
[342189511,1731573063268,-153.517899,0.00022465,7]
[342189512,1731573063380,-151.0,0.00022465,7]
[342189513,1731573063391,-151.0,0.00022465,7]
[342189514,1731573063402,-151.0,0.00022465,7]
[342189515,1731573063413,-343.266896,0.00022465,7]
[342189516,1731573063425,-343.266896,0.00022465,7]
[342189517,1731573063436,-343.266896,0.00022465,7]
[342189518,1731573063446,-343.266896,0.00022465,7]
[342189519,1731573063456,-151.0,0.00022465,7]
[342189520,1731573063466,-151.0,0.00022465,7]
[342189521,1731573063476,-1496.705765,0.00022465,7]
[342189522,1731573063486,-1496.705765,0.00022465,7]
[342189523,1731573063496,-163.702493,0.00022465,7]
[342189524,1731573063506,-163.702493,0.00022465,7]
[342189525,1731573063516,-163.702493,0.00022465,7]
[342189526,1731573063526,-163.702493,0.00022465,7]
[342189527,1731573063535,-199.097967,0.00022465,7]
[342189528,1731573063545,-199.097967,0.00022465,7]
[342189529,1731573063556,-199.097967,0.00022465,7]
[342189530,1731573063566,-199.097967,0.00022465,7]
[342189531,1731573063578,-500.0,0.00022465,2]
[342189532,1731573063588,-500.0,0.00022465,2]
[342189533,1731573063599,-500.0,0.00022465,2]
[342189534,1731573063609,-500.0,0.00022465,2]
[342189535,1731573063619,-195.027818,0.00022465,7]
[342189536,1731573063629,-195.027828,0.00022465,7]
[342189537,1731573063638,-245.038897,0.00022465,7]
[342189538,1731573063648,-245.038901,0.00022465,7]
[342189539,1731573063658,-500.0,0.00022465,2]
[342189540,1731573063666,-500.0,0.00022465,2]
[342189541,1731573063676,-510.0354228,0.00022465,2]
[342189542,1731573063686,-500.0,0.00022465,2]
[342189543,1731573063695,-500.0,0.00022465,2]
[342189544,1731573063705,-500.0,0.00022465,2]
[342189545,1731573063715,-500.0,0.00022465,2]
[342189546,1731573063724,-500.0,0.00022465,2]
[342189547,1731573063734,-524.26322162,0.00022465,2]
[342189548,1731573063744,-500.0,0.00022465,2]
[342189549,1731573063754,-485.738914,0.00022465,7]
[342189550,1731573063763,-485.738914,0.00022465,7]
[342189551,1731573063773,-485.738914,0.00022465,7]
[342189552,1731573063783,-485.738914,0.00022465,7]
[342189553,1731573063793,-594.98844579,0.00022465,2]
[342189554,1731573063802,-503.82801041,0.00022465,2]
[342189555,1731573063812,-189.28451804,0.00022465,2]
[342189556,1731573063823,-500.0,0.00022465,2]
[342189557,1731573063834,-505.85884395,0.00022465,2]
[342189558,1731573063845,-504.55,0.00022465,2]
[342189559,1731573063858,-500.0,0.00022465,2]
[342189560,1731573063868,-502.88528294,0.00022465,2]
[342189561,1731573063878,-504.54011117,0.00022465,2]
[342189562,1731573063888,-500.0,0.00022465,2]
[342189563,1731573063899,-500.94652056,0.00022465,2]
[342189564,1731573063909,-757.47,0.00022465,2]
[342189565,1731573063919,-500.0,0.00022465,2]
[342189566,1731573063929,-520.15554299,0.00022465,2]
[342189567,1731573063939,-500.0,0.00022465,2]
[342189568,1731573063949,-500.0,0.00022465,2]
[342189569,1731573063959,-505.85883004,0.00022465,2]
[342189570,1731573063968,-500.0,0.00022465,2]
[342189571,1731573063978,-500.0,0.00022465,2]
[342189572,1731573063988,-500.0,0.00022465,2]
[342189573,1731573063998,-500.0,0.00022465,2]
[342189574,1731573064007,-500.0,0.00022465,2]
[342189575,1731573064017,-500.0,0.00022465,2]
[342189576,1731573064027,-200.0,0.00022465,2]
[342189577,1731573064037,-500.0,0.00022465,2]
[342189578,1731573064046,-230.24763,0.00022465,7]
[342189579,1731573064056,-500.0,0.00022465,2]
[342189580,1731573064066,-500.0,0.00022465,2]
[342189581,1731573064082,-500.0,0.00022465,2]
[342189582,1731573064092,-230.247637,0.00022465,7]
[342189583,1731573064102,-835.68,0.00022465,2]
[342189584,1731573064112,-500.0,0.00022465,2]
[342189585,1731573064122,-500.0,0.00022465,2]
[342189586,1731573064132,-521.41766375,0.00022465,2]
[342189587,1731573064142,-500.0,0.00022465,2]
[342189588,1731573064152,-500.0,0.00022465,2]
[342189589,1731573064163,-500.0,0.00022465,2]
[342189590,1731573064173,-500.0,0.00022465,2]
[342189591,1731573064183,-500.0,0.00022465,2]
[342189592,1731573064193,-609.137778,0.00022465,7]
[342189593,1731573064203,-502.21664485,0.00022465,2]
[342189594,1731573064213,-500.0,0.00022465,2]
[342189595,1731573064223,-609.137781,0.00022465,7]
[342189596,1731573064233,-549.79306157,0.00022465,2]
[342189597,1731573064243,-500.0,0.00022465,2]
[342189598,1731573064253,-500.0,0.00022465,2]
[342189599,1731573064263,-500.0,0.00022465,2]
[342189600,1731573064273,-620.08443441,0.00022465,2]
[342189601,1731573064284,-500.0,0.00022465,2]
[342189602,1731573064294,-511.5327739,0.00022465,2]
[342189603,1731573064305,-500.0,0.00022465,2]
[342189604,1731573064316,-502.90547098,0.00022465,2]
[342189605,1731573064330,-487.196558,0.00022465,7]
[342189606,1731573064341,-584.24,0.00022465,2]
[342189607,1731573064351,-500.0,0.00022465,2]
[342189608,1731573064361,-500.0,0.00022465,2]
[342189609,1731573064371,-500.0,0.00022465,2]
[342189610,1731573064380,-491.58122707,0.00022465,2]
[342189611,1731573064391,-487.196553,0.00022465,7]
[342189612,1731573064401,-508.57807959,0.00022465,2]
[342189613,1731573064411,-500.0,0.00022465,2]
[342189614,1731573064421,-641.52,0.00022465,2]
[342189615,1731573064430,-212.57005025,0.00022465,2]
[342189616,1731573064441,-500.0,0.00022465,2]
[342189617,1731573064451,-374.89613856,0.00022465,2]
[342189618,1731573064461,-151.0,0.00022465,7]
[342189619,1731573064470,-684.54,0.00022465,2]
[342189620,1731573064480,-164.24606114,0.00022465,2]
[342189621,1731573064490,-565.79164387,0.00022465,2]
[342189622,1731573064499,-500.0,0.00022465,2]
[342189623,1731573064510,-500.0,0.00022465,2]
[342189624,1731573064520,-500.0,0.00022465,2]
[342189625,1731573064530,-509.3,0.00022465,2]
[342189626,1731573064540,-500.0,0.00022465,2]
[342189627,1731573064550,-500.0,0.00022465,2]
[342189628,1731573064560,-500.0,0.00022465,2]
[342189629,1731573064569,-503.1378382,0.00022465,2]
[342189630,1731573064581,-500.0,0.00022465,2]
[342189631,1731573064590,-500.0,0.00022465,2]
[342189632,1731573064601,-697.04,0.00022465,2]
[342189633,1731573064611,-500.0,0.00022465,2]
[342189634,1731573064620,-500.0,0.00022465,2]
[342189635,1731573064630,-500.0,0.00022465,2]
[342189636,1731573064639,-500.0,0.00022465,2]
[342189637,1731573064649,-500.0,0.00022465,2]
[342189638,1731573064658,-517.88412147,0.00022465,2]
[342189639,1731573064667,-500.0,0.00022465,2]
[342189640,1731573064677,-500.0,0.00022465,2]
[342189641,1731573064686,-686.84,0.00022465,2]
[342189642,1731573064696,-500.0,0.00022465,2]
[342189643,1731573064705,-500.0,0.00022465,2]
[342189644,1731573064714,-500.0,0.00022465,2]
[342189645,1731573064724,-315.4851122,0.00022465,2]
[342189646,1731573064733,-500.0,0.00022465,2]
[342189647,1731573064743,-500.0,0.00022465,2]
[342189648,1731573064753,-503.19903245,0.00022465,2]
[342189649,1731573064762,-500.0,0.00022465,2]
[342189650,1731573064772,-500.0,0.00022465,2]
[342189651,1731573064781,-500.0,0.00022465,2]
[342189652,1731573064791,-500.0,0.00022465,2]
[342189653,1731573064801,-500.0,0.00022465,2]
[342189654,1731573064811,-708.18,0.00022465,2]
[342189655,1731573064820,-648.32,0.00022465,2]
[342189656,1731573064834,-180.54341492,0.00022465,2]
[342189657,1731573064844,-174.30000382,0.00022465,2]
[342189658,1731573064857,-500.0,0.00022465,2]
[342189659,1731573064866,-646.65,0.00022465,2]
[342189660,1731573064876,-419.734976,0.00022465,2]
[342189661,1731573064886,-500.0,0.00022465,2]
[342189662,1731573064897,-500.0,0.00022465,2]
[342189663,1731573064907,-500.0,0.00022465,2]
[342189664,1731573064916,-500.0,0.00022465,2]
[342189665,1731573064926,-500.0,0.00022465,2]
[342189666,1731573064936,-500.0,0.00022465,2]
[342189667,1731573064945,-500.0,0.00022465,2]
[342189668,1731573064955,-511.81430267,0.00022465,2]
[342189669,1731573064965,-959.98,0.00022465,2]
[342189670,1731573064975,-500.0,0.00022465,2]
[342189671,1731573064984,-503.07682757,0.00022465,2]
[342189672,1731573064995,-500.0,0.00022465,2]
[342189673,1731573065004,-500.0,0.00022465,2]
[342189674,1731573065014,-500.0,0.00022465,2]
[342189675,1731573065024,-504.1981779,0.00022465,2]
[342189676,1731573065033,-667.32,0.00022465,2]
[342189677,1731573065042,-500.0,0.00022465,2]
[342189678,1731573065052,-853.52291937,0.00022465,5]
[342189679,1731573065062,-614.21,0.00022465,2]
[342189680,1731573065076,-500.0,0.00022465,2]
[342189681,1731573065086,-509.34451901,0.00022465,2]
[342189682,1731573065095,-1074.05,0.00022465,2]
[342189683,1731573065105,-540.04836407,0.00022465,2]
[342189684,1731573065115,-500.0,0.00022465,2]
[342189685,1731573065125,-500.0,0.00022465,2]
[342189686,1731573065135,-500.0,0.00022465,2]
[342189687,1731573065145,-500.0,0.00022465,2]
[342189688,1731573065154,-751.02,0.00022465,2]
[342189689,1731573065164,-500.0,0.00022465,2]
[342189690,1731573065174,-500.0,0.00022465,2]
[342189691,1731573065184,-517.74839569,0.00022465,2]
[342189692,1731573065193,-500.0,0.00022465,2]
[342189693,1731573065203,-367.699136,0.00022465,7]
[342189694,1731573065213,-500.0,0.00022465,2]
[342189695,1731573065223,-367.699128,0.00022465,7]
[342189696,1731573065320,-500.0,0.00022465,2]
[342189697,1731573065336,-500.0,0.00022465,2]
[342189698,1731573065347,-505.57972858,0.00022465,2]
[342189699,1731573065356,-500.0,0.00022465,2]
[342189700,1731573065365,-412.00024927,0.00022465,2]
[342189701,1731573065374,-500.0,0.00022465,2]
[342189702,1731573065382,-500.0,0.00022465,2]
[342189703,1731573065391,-500.0,0.00022465,2]
[342189704,1731573065404,-500.0,0.00022465,2]
[342189705,1731573065414,-521.56771057,0.00022465,2]
[342189706,1731573065423,-1017.4,0.00022465,2]
[342189707,1731573065433,-500.0,0.00022465,2]
[342189708,1731573065442,-500.0,0.00022465,2]
[342189709,1731573065451,-500.0,0.00022465,2]
[342189710,1731573065460,-700.81,0.00022465,2]
[342189711,1731573065470,-500.0,0.00022465,2]
[342189712,1731573065479,-500.0,0.00022465,2]
[342189713,1731573065488,-500.0,0.00022465,2]
[342189714,1731573065497,-615.11896936,0.00022465,2]
[342189715,1731573065506,-500.0,0.00022465,2]
[342189716,1731573065516,-500.0,0.00022465,2]
[342189717,1731573065525,-599.22,0.00022465,2]
[342189718,1731573065534,-500.0,0.00022465,2]
[342189719,1731573065543,-536.38370422,0.00022465,2]
[342189720,1731573065553,-500.0,0.00022465,2]
[342189721,1731573065562,-500.0,0.00022465,2]
[342189722,1731573065574,-500.0,0.00022465,2]
[342189723,1731573065583,-500.0,0.00022465,2]
[342189724,1731573065592,-500.0,0.00022465,2]
[342189725,1731573065601,-500.0,0.00022465,2]
[342189726,1731573065610,-783.57,0.00022465,2]
[342189727,1731573065619,-2336.0,0.00022465,2]
[342189728,1731573065628,-3283.68949,0.00022465,7]
[342189729,1731573065638,-646.63,0.00022465,2]
[342189730,1731573065647,-502.88892463,0.00022465,2]
[342189731,1731573065656,-500.0,0.00022465,2]
[342189732,1731573065666,-3283.689492,0.00022465,7]
[342189733,1731573065675,-507.36469544,0.00022465,2]
[342189734,1731573065685,-500.0,0.00022465,2]
[342189735,1731573065695,-503.93574068,0.00022465,2]
[342189736,1731573065704,-500.0,0.00022465,2]
[342189737,1731573065713,-627.53,0.00022465,2]
[342189738,1731573065722,-589.25,0.00022465,2]
[342189739,1731573065731,-500.0,0.00022465,2]
[342189740,1731573065741,-500.0,0.00022465,2]
[342189741,1731573065750,-500.0,0.00022465,2]
[342189742,1731573065759,-500.0,0.00022465,2]
[342189743,1731573065769,-339.97128374,0.00022465,2]
[342189744,1731573065778,-500.0,0.00022465,2]
[342189745,1731573065787,-500.0,0.00022465,2]
[342189746,1731573065796,-557.5004738,0.00022465,2]
[342189747,1731573065805,-304.002608,0.00022465,7]
[342189748,1731573065815,-500.0,0.00022465,2]
[342189749,1731573065826,-500.0,0.00022465,2]
[342189750,1731573065835,-610.68078776,0.00022465,2]
[342189751,1731573065844,-537.38,0.00022465,2]
[342189752,1731573065855,-304.002618,0.00022465,7]
[342189753,1731573065864,-541.73,0.00022465,2]
[342189754,1731573065874,-500.0,0.00022465,2]
[342189755,1731573065883,-500.0,0.00022465,2]
[342189756,1731573065894,-500.0,0.00022465,2]
[342189757,1731573065903,-500.0,0.00022465,2]
[342189758,1731573065913,-500.0,0.00022465,2]
[342189759,1731573065922,-500.0,0.00022465,2]
[342189760,1731573065935,-500.0,0.00022465,2]
[342189761,1731573065945,-500.0,0.00022465,2]
[342189762,1731573065954,-500.0,0.00022465,2]
[342189763,1731573065963,-867.05,0.00022465,2]
[342189764,1731573065973,-500.97240136,0.00022465,2]
[342189765,1731573065982,-500.0,0.00022465,2]
[342189766,1731573065991,-503.59,0.00022465,2]
[342189767,1731573066000,-713.83,0.00022465,2]
[342189768,1731573066009,-547.41,0.00022465,2]
[342189769,1731573066018,-500.0,0.00022465,2]
[342189770,1731573066028,-500.0,0.00022465,2]
[342189771,1731573066037,-505.49919252,0.00022465,2]
[342189772,1731573066047,-500.0,0.00022465,2]
[342189773,1731573066056,-856.07,0.00022465,2]
[342189774,1731573066065,-500.0,0.00022465,2]
[342189775,1731573066077,-500.0,0.00022465,2]
[342189776,1731573066087,-310.33079268,0.00022465,2]
[342189777,1731573066096,-500.0,0.00022465,2]
[342189778,1731573066105,-502.11952343,0.00022465,2]
[342189779,1731573066114,-500.0,0.00022465,2]
[342189780,1731573066124,-192.1811674,0.00022465,2]
[342189781,1731573066133,-505.93796287,0.00022465,2]
[342189782,1731573066142,-500.0,0.00022465,2]
[342189783,1731573066151,-524.8240596,0.00022465,2]
[342189784,1731573066160,-500.0,0.00022465,2]
[342189785,1731573066169,-358.20234172,0.00022465,2]
[342189786,1731573066178,-500.0,0.00022465,2]
[342189787,1731573066188,-500.0,0.00022465,2]
[342189788,1731573066197,-500.0,0.00022465,2]
[342189789,1731573066206,-500.0,0.00022465,2]
[342189790,1731573066215,-500.0,0.00022465,2]
[342189791,1731573066224,-509.17874417,0.00022465,2]
[342189792,1731573066234,-500.0,0.00022465,2]
[342189793,1731573066243,-699.21,0.00022465,2]
[342189794,1731573066252,-353.56491208,0.00022465,2]
[342189795,1731573066261,-1084.66,0.00022465,2]
[342189796,1731573066270,-500.0,0.00022465,2]
[342189797,1731573066278,-926.01,0.00022465,2]
[342189798,1731573066287,-500.0,0.00022465,2]
[342189799,1731573066297,-500.0,0.00022465,2]
[342189800,1731573066306,-500.0,0.00022465,2]
[342189801,1731573066315,-500.0,0.00022465,2]
[342189802,1731573066326,-628.32,0.00022465,2]
[342189803,1731573066336,-228.17289294,0.00022465,2]
[342189804,1731573066344,-500.0,0.00022465,2]
[342189805,1731573066353,-500.0,0.00022465,2]
[342189806,1731573066362,-500.0,0.00022465,2]
[342189807,1731573066371,-575.84394005,0.00022465,2]
[342189808,1731573066380,-1271.83,0.00022465,2]
[342189809,1731573066390,-380.52382275,0.00022465,2]
[342189810,1731573066400,-500.0,0.00022465,2]
[342189811,1731573066415,-500.0,0.00022465,2]
[342189812,1731573066424,-500.0,0.00022465,2]
[342189813,1731573066434,-500.0,0.00022465,2]
[342189814,1731573066443,-581.31543624,0.00022465,2]
[342189815,1731573066452,-500.0,0.00022465,2]
[342189816,1731573066462,-500.0,0.00022465,2]
[342189817,1731573066470,-500.0,0.00022465,2]
[342189818,1731573066480,-501.77376009,0.00022465,2]
[342189819,1731573066489,-500.0,0.00022465,2]
[342189820,1731573066498,-514.27164115,0.00022465,2]
[342189821,1731573066507,-818.86,0.00022465,2]
[342189822,1731573066516,-505.70733814,0.00022465,2]
[342189823,1731573066526,-500.0,0.00022465,2]
[342189824,1731573066534,-500.0,0.00022465,2]
[342189825,1731573066543,-500.0,0.00022465,2]
[342189826,1731573066552,-512.53383733,0.00022465,2]
[342189827,1731573066561,-506.81971922,0.00022465,2]
[342189828,1731573066572,-500.0,0.00022465,2]
[342189829,1731573066581,-530.24264745,0.00022465,2]
[342189830,1731573066590,-583.79,0.00022465,2]
[342189831,1731573066600,-503.99633833,0.00022465,2]
[342189832,1731573066609,-1276.77936,0.00022465,7]
[342189833,1731573066618,-505.84889079,0.00022465,2]
[342189834,1731573066626,-1276.7793647,0.00022465,7]
[342189835,1731573066635,-500.0,0.00022465,2]
[342189836,1731573066644,-516.65472637,0.00022465,2]
[342189837,1731573066653,-512.65269141,0.00022465,2]
[342189838,1731573066663,-17345.35,0.00022465,2]
[342189839,1731573066672,-500.0,0.00022465,2]
[342189840,1731573066681,-508.9,0.00022465,2]
[342189841,1731573066690,-500.0,0.00022465,2]
[342189842,1731573066699,-500.0,0.00022465,2]
[342189843,1731573066708,-500.0,0.00022465,2]
[342189844,1731573066717,-500.0,0.00022465,2]
[342189845,1731573066726,-564.28817649,0.00022465,2]
[342189846,1731573066736,-511.15,0.00022465,2]
[342189847,1731573066749,-500.0,0.00022465,2]
[342189848,1731573066758,-504.3555391,0.00022465,2]
[342189849,1731573066767,-500.0,0.00022465,2]
[342189850,1731573066777,-500.0,0.00022465,2]
[342189851,1731573066786,-454.64787187,0.00022465,2]
[342189852,1731573066795,-500.0,0.00022465,2]
[342189853,1731573066804,-1740.72,0.00022465,2]
[342189854,1731573066814,-500.0,0.00022465,2]
[342189855,1731573066825,-500.0,0.00022465,2]
[342189856,1731573066834,-756.89,0.00022465,2]
[342189857,1731573066845,-500.0,0.00022465,2]
[342189858,1731573066862,-829.87,0.00022465,2]
[342189859,1731573066872,-500.0,0.00022465,2]
[342189860,1731573066882,-625.89,0.00022465,2]
[342189861,1731573066893,-500.0,0.00022465,2]
[342189862,1731573066903,-500.0,0.00022465,2]
[342189863,1731573066912,-500.0,0.00022465,2]
[342189864,1731573066922,-500.0,0.00022465,2]
[342189865,1731573067020,-500.0,0.00022465,2]
[342189866,1731573067030,-4760.481665,0.00022465,7]
[342189867,1731573067039,-4760.481667,0.00022465,7]
[342189868,1731573067049,-718.12,0.00022465,2]
[342189869,1731573067058,-964.91,0.00022465,2]
[342189870,1731573067068,-509.8939059,0.00022465,2]
[342189871,1731573067079,-4845.78,0.00022465,2]
[342189872,1731573067088,-500.0,0.00022465,2]
[342189873,1731573067098,-500.0,0.00022465,2]
[342189874,1731573067107,-1984.18,0.00022465,2]
[342189875,1731573067117,-500.0,0.00022465,2]
[342189876,1731573067126,-500.0,0.00022465,2]
[342189877,1731573067135,-512.02,0.00022465,2]
[342189878,1731573067145,-500.0,0.00022465,2]
[342189879,1731573067154,-503.96332278,0.00022465,2]
[342189880,1731573067163,-1439.61,0.00022465,2]
[342189881,1731573067173,-537.70234795,0.00022465,2]
[342189882,1731573067183,-533.04567309,0.00022465,2]
[342189883,1731573067192,-725.06,0.00022465,2]
[342189884,1731573067201,-500.0,0.00022465,2]
[342189885,1731573067211,-500.0,0.00022465,2]
[342189886,1731573067220,-528.91347283,0.00022465,2]
[342189887,1731573067229,-500.0,0.00022465,2]